bitfinex-derivatives/quotes_ETHF0:USTF0_20241228
["timestamp","ask_amount","ask_price","bid_price","bid_amount"]
[1735388248670,0.4483,3358.4,3358.1,3.95405658]
[1735388248873,0.4483,3358.4,3358.2,0.29826]
[1735388249572,0.4483,3358.4,3358.1,3.95405658]
[1735388249875,0.4483,3358.4,3358.2,0.29826]
[1735388250269,0.4483,3358.4,3358.1,3.2078]
[1735388250573,0.29826,3358.2,3358.1,3.2078]
[1735388250776,0.29826,3358.3,3358.1,3.2078]
[1735388251471,0.4307,3358.2,3358.1,3.2078]
[1735388252573,0.72896,3358.2,3358.1,3.2078]
[1735388252780,0.72896,3358.2,3357.7,6.95763435]
[1735388252781,0.29828,3358.1,3357.8,0.7373]
[1735388252978,0.29828,3358.1,3357.8,0.439]
[1735388253183,0.729,3358.2,3357.9,0.29832]
[1735388253480,0.29831,3358.1,3357.8,0.73733]
[1735388253976,3.81185641,3358.1,3357.8,0.73733]
[1735388255076,3.51354641,3358.1,3357.8,0.439]
[1735388255377,3.51354641,3358.1,3357.9,0.29832]
[1735388255877,3.81184641,3358.1,3357.9,0.29832]
[1735388256079,3.81184641,3358.1,3357.8,0.73733]
[1735388256272,3.51354641,3358.1,3357.8,0.439]
[1735388256487,3.51354641,3358.1,3357.9,0.29832]
[1735388256779,3.81185641,3358.1,3357.8,0.73733]
[1735388259680,0.29832,3358.0,3357.7,4.25239658]
[1735388259877,0.29832,3358.0,3357.8,0.29833]
[1735388259878,0.4278,3358.0,3357.8,0.29833]
[1735388260382,3.51354641,3358.1,3357.9,0.74625658]
[1735388260583,3.51354641,3358.1,3358.0,0.29831]
[1735388260781,3.51354641,3358.1,3358.0,0.74491]
[1735388261081,3.51354641,3358.1,3358.0,1.18041]
[1735388261280,3.51354641,3358.1,3358.0,41.98041]
[1735388262279,3.51354641,3358.1,3358.0,41.54491]
[1735388262480,1.20805658,3358.3,3358.1,0.2983]
[1735388262688,1.20805658,3358.3,3358.1,0.00218019]
[1735388262983,0.29829,3358.2,3358.1,0.00218019]
[1735388266386,0.29836,3357.5,3356.8,3.2078]
[1735388266586,0.74625658,3357.3,3357.0,0.74601]
[1735388266885,0.74625658,3357.3,3357.2,0.29838]
[1735388267682,1.18077,3357.4,3357.2,0.29838]
[1735388267888,0.8824,3357.4,3356.9,0.4476]
[1735388268283,0.29838,3357.2,3356.9,0.746]
[1735388269187,0.29838,3357.2,3356.9,0.4476]
[1735388269683,0.29838,3357.2,3356.9,0.74601]
[1735388269885,0.72168,3357.3,3356.9,0.74601]
[1735388270082,0.75697,3357.4,3357.0,0.2984]
[1735388271079,0.29837,3357.3,3357.0,0.2984]
[1735388272087,0.29837,3357.3,3356.9,0.4476]
[1735388272279,0.4586,3357.4,3356.9,0.4476]
[1735388272586,0.75697,3357.4,3357.1,0.29839]
[1735388272784,0.29837,3357.3,3357.1,0.29839]
[1735388272978,0.29838,3357.3,3357.0,0.2984]
[1735388273184,0.4555,3357.2,3357.0,0.2984]
[1735388273688,0.4682,3357.1,3357.0,0.2984]
[1735388274086,0.4682,3357.1,3356.8,3.50622]
[1735388274285,0.7666,3357.1,3356.8,3.50622]
[1735388274481,0.7666,3357.1,3356.8,3.2078]
[1735388274689,0.7666,3357.1,3356.9,0.29841]
[1735388275086,0.4682,3357.1,3356.9,0.4351]
[1735388275387,0.4682,3357.1,3357.0,0.2984]
[1735388276890,0.4682,3357.1,3356.4,3.2078]
[1735388277189,0.4682,3357.1,3356.7,0.29843]
[1735388277382,0.29842,3356.9,3356.7,0.29843]
[1735388277586,0.4261,3356.8,3356.7,0.29843]
[1735388277982,3.6339,3356.8,3356.2,41.09847]
[1735388278189,2.48465233,3356.7,3356.2,41.09847]
[1735388278490,0.29846,3356.3,3356.2,41.09847]
[1735388279086,2.48465233,3356.7,3356.2,40.8]
[1735388279291,0.29846,3356.4,3356.3,0.29846]
[1735388279495,0.29846,3356.3,3356.2,40.8]
[1735388279697,0.75506,3356.3,3356.2,41.09847]
[1735388280784,0.75506,3356.3,3356.2,40.8]
[1735388281191,0.75506,3356.3,3356.2,41.09847]
[1735388281595,0.75506,3356.3,3356.2,40.8]
[1735388282597,0.75506,3356.3,3356.2,41.09846]
[1735388284099,0.4566,3356.3,3356.2,0.29846]
[1735388284297,0.4436,3356.7,3356.3,0.29845]
[1735388284504,3.6339,3356.8,3356.4,41.2404]
[1735388284804,4.68034708,3357.0,3356.9,0.29839]
[1735388285494,4.68034708,3357.0,3356.9,0.75749]
[1735388285693,0.29836,3357.3,3356.9,0.4591]
[1735388285901,0.29836,3357.3,3357.1,0.29837]
[1735388286301,1.3467,3357.6,3356.9,0.4591]
[1735388286602,3.2078,3357.9,3356.9,5.4591]
[1735388286795,3.2078,3357.9,3357.8,0.29831]
[1735388287103,0.29834,3357.5,3357.2,0.29836]
[1735388287297,0.4342,3357.4,3357.2,0.29836]
[1735388287694,0.4342,3357.4,3357.3,0.29835]
[1735388287895,0.4342,3357.4,3356.8,3.2078]
[1735388288096,0.4342,3357.4,3356.8,4.3878]
[1735388288297,0.4342,3357.4,3357.3,0.29835]
[1735388288705,0.73255,3357.4,3357.0,0.29838]
[1735388288902,0.4342,3357.4,3357.1,0.29836]
[1735388289103,0.4342,3357.4,3357.2,0.29836]
[1735388289905,0.4342,3357.4,3357.1,0.29837]
[1735388290306,0.4342,3357.4,3357.2,0.448]
[1735388290507,0.4342,3357.4,3356.8,4.3878]
[1735388290804,3.2078,3357.9,3357.2,3.6558]
[1735388290996,3.2078,3357.9,3357.3,0.4328]
[1735388291207,0.8847,3358.2,3357.9,0.2983]
[1735388291503,1.18298,3358.2,3358.0,0.4683]
[1735388291699,0.8847,3358.2,3357.7,3.50611]
[1735388291906,0.29829,3358.0,3357.8,0.29831]
[1735388292105,0.29829,3358.0,3357.8,41.09831]
[1735388292506,0.29829,3358.0,3357.8,40.8]
[1735388292900,0.29829,3358.0,3357.8,41.0983]
[1735388294102,0.2983,3357.9,3357.7,0.29831]
[1735388294312,4.0925,3358.2,3357.5,0.29833]
[1735388294313,0.29832,3357.7,3357.5,0.29833]
[1735388294506,0.428,3357.6,3357.5,0.29833]
[1735388294808,0.2983,3357.9,3357.7,0.29831]
[1735388296698,0.428,3358.0,3357.8,0.2983]
[1735388296898,0.428,3358.0,3357.6,3.2078]
[1735388297105,0.2983,3357.9,3357.7,0.29831]
[1735388298002,0.428,3358.0,3357.5,0.29833]
[1735388298003,0.29832,3357.7,3357.5,0.29833]
[1735388298217,0.4556,3357.6,3357.5,0.29833]
[1735388298410,0.8988,3357.6,3357.5,0.29833]
[1735388298798,0.29834,3357.5,3357.2,3.50616]
[1735388299706,0.29834,3357.5,3357.2,3.2078]
[1735388299907,0.29834,3357.5,3357.3,0.29835]
[1735388301706,0.29834,3357.5,3357.2,3.50616]
[1735388302108,0.29835,3357.4,3357.2,0.29836]
[1735388302313,0.29835,3357.4,3357.0,0.4285]
[1735388302613,4.1066,3357.6,3357.3,0.29835]
[1735388302913,0.29834,3357.5,3357.3,0.29835]
[1735388303111,0.29834,3357.5,3357.2,0.29836]
[1735388304910,0.29838,3357.1,3356.9,0.4451]
[1735388305114,1.57775233,3357.5,3356.9,0.4451]
[1735388305313,0.29838,3357.0,3356.8,3.2078]
[1735388305516,0.9022,3356.9,3356.8,3.2078]
[1735388305814,1.66879,3356.9,3356.8,3.2078]
[1735388306114,1.3704,3356.9,3356.8,3.2078]
[1735388307702,1.66879,3356.9,3356.8,3.2078]
[1735388309412,1.3704,3356.9,3356.2,44.0078]
[1735388309609,0.29844,3356.4,3356.2,44.0078]
[1735388309812,0.8708,3356.3,3356.2,44.0078]
[1735388310018,1.16924,3356.3,3356.2,44.0078]
[1735388312315,0.8708,3356.3,3356.2,3.2078]
[1735388312512,0.8708,3356.3,3356.2,3.50625]
[1735388312720,1.63574,3356.3,3356.2,3.2078]
[1735388313017,0.9123,3356.3,3356.2,3.50625]
[1735388313616,1.21074,3356.3,3356.2,3.2078]
[1735388315820,1.21074,3356.3,3356.2,3.50625]
[1735388316112,1.21074,3356.3,3356.2,3.2078]
[1735388317717,0.29846,3356.1,3356.0,0.29846]
[1735388320021,0.29846,3356.2,3356.1,0.29846]
[1735388320321,0.29846,3356.2,3355.9,40.8]
[1735388320322,1.17915,3356.3,3356.0,0.29847]
[1735388320517,0.29846,3356.2,3356.1,0.29846]
[1735388320733,0.8807,3356.3,3355.9,40.8]
[1735388320734,2.45845233,3356.3,3355.9,0.29848]
[1735388321015,0.29847,3356.1,3355.9,0.29848]
[1735388321220,0.74247,3356.0,3355.7,0.4247]
[1735388321414,0.74247,3356.0,3355.9,0.29848]
[1735388321811,0.444,3356.0,3355.9,0.29848]
[1735388322224,0.74247,3356.0,3355.9,0.29848]
[1735388322919,0.444,3356.0,3355.9,0.29848]
[1735388324225,0.74247,3356.0,3355.9,0.29848]
[1735388325621,0.29848,3355.9,3355.8,0.29848]
[1735388325819,0.74468,3355.9,3355.8,0.29848]
[1735388326021,0.4462,3355.9,3355.8,0.29848]
[1735388328822,0.444,3356.0,3355.7,41.2247]
[1735388329017,0.444,3356.0,3355.9,0.29848]
[1735388329624,0.4261,3356.3,3356.2,0.29845]
[1735388329927,0.29845,3356.3,3355.7,41.97093]
[1735388330224,0.29845,3356.3,3356.2,0.29845]
[1735388330526,3.50624,3356.4,3356.3,0.29844]
[1735388330723,3.2078,3356.8,3356.7,0.2984]
[1735388330924,3.5062,3356.8,3356.7,0.2984]
[1735388331922,3.2078,3356.8,3356.7,0.2984]
[1735388332120,3.5062,3356.8,3356.7,0.2984]
[1735388333728,3.2078,3356.8,3356.2,1.3509]
[1735388333926,0.29842,3356.7,3356.2,1.3509]
[1735388334128,3.2078,3356.8,3356.5,0.29842]
[1735388334323,0.29842,3356.6,3356.5,0.29842]
[1735388334923,3.2078,3356.8,3356.7,0.29841]
[1735388337232,8.18648708,3357.5,3357.2,0.29836]
[1735388337433,8.18648708,3357.5,3357.4,0.29835]
[1735388337434,7.88814708,3357.5,3357.4,0.29835]
[1735388337735,3.2078,3357.5,3357.4,0.29835]
[1735388339125,3.50614,3357.5,3357.4,0.29835]
[1735388340833,0.29834,3357.5,3357.4,0.29835]
[1735388341726,0.9192,3357.6,3357.1,40.8]
[1735388342035,0.29835,3357.4,3357.3,0.29835]
[1735388343555,0.29835,3357.4,3357.0,3.2078]
[1735388343556,0.29834,3357.5,3357.4,0.29834]
[1735388344659,1.21753,3357.6,3357.5,0.29834]
[1735388345357,0.29834,3357.5,3357.4,0.29834]
[1735388345745,0.29834,3357.5,3357.0,3.2078]
[1735388345746,1.21753,3357.6,3357.5,0.29834]
[1735388347158,0.9192,3357.6,3357.0,3.2078]
[1735388347460,0.29834,3357.5,3357.4,0.29834]
[1735388347955,0.29834,3357.5,3357.0,3.2078]
[1735388347956,0.29835,3357.4,3357.3,0.29835]
[1735388348154,0.9192,3357.6,3357.0,3.2078]
[1735388348354,0.29834,3357.5,3357.1,0.29837]
[1735388348656,0.29837,3357.1,3357.0,3.50618]
[1735388350060,0.29837,3357.1,3357.0,3.2078]
[1735388350761,1.57775233,3357.5,3357.0,3.2078]
[1735388351061,5.89787708,3357.6,3357.0,3.2078]
[1735388351263,5.89787708,3357.6,3357.1,0.29837]
[1735388351561,5.89787708,3357.6,3357.4,0.29834]
[1735388351864,0.4441,3357.7,3357.6,0.29833]
[1735388352562,0.4441,3357.7,3357.6,41.09833]
[1735388352862,0.4441,3357.7,3357.6,0.29833]
[1735388358762,0.74242,3357.7,3357.6,0.29833]
[1735388361772,0.4441,3357.7,3357.6,0.29833]
[1735388362070,0.2983,3357.9,3357.3,45.19357]
[1735388362266,0.2983,3357.9,3357.8,0.29831]
[1735388363970,0.2983,3357.9,3357.3,45.19357]
[1735388363971,0.29831,3357.8,3357.7,0.29831]
[1735388366470,0.29832,3357.7,3357.6,0.29832]
[1735388371569,0.29831,3357.8,3357.7,0.29831]
[1735388373879,4.97865708,3357.8,3357.7,0.29831]
[1735388376481,4.68034708,3357.8,3357.7,3.87912187]
[1735388376976,4.68034708,3357.8,3357.7,4.47589231]
[1735388377367,4.68034708,3357.8,3357.7,5.36916739]
[1735388378278,5.43721708,3358.3,3357.7,5.07085739]
[1735388378474,5.43721708,3358.3,3358.1,0.29827]
[1735388378874,5.13894708,3358.3,3358.2,0.29827]
[1735388379073,5.13894708,3358.3,3357.7,4.1011]
[1735388379074,5.43720708,3358.3,3357.7,4.1011]
[1735388379278,5.43720708,3358.3,3358.1,0.29828]
[1735388380076,5.43720708,3358.3,3358.2,0.4536]
[1735388380884,5.13894708,3358.3,3358.2,0.75187]
[1735388381182,5.43720708,3358.3,3358.2,0.75187]
[1735388381383,0.75686,3358.3,3358.2,0.75187]
[1735388381980,0.4586,3358.3,3358.2,0.75187]
[1735388382173,5.87619708,3358.5,3358.4,0.29825]
[1735388382781,5.57794708,3358.5,3358.4,0.29825]
[1735388382981,4.68034708,3358.5,3358.4,0.29825]
[1735388383976,0.444,3358.6,3358.5,0.29825]
[1735388384179,3.2078,3358.7,3358.6,0.29824]
[1735388384485,4.68034708,3358.8,3358.7,0.29823]
[1735388384682,5.10444708,3358.9,3358.5,3.2078]
[1735388384979,4.68034708,3358.9,3358.8,0.29822]
[1735388385375,4.68034708,3358.9,3358.8,41.09822]
[1735388385784,7.88814708,3359.2,3358.8,41.2316]
[1735388385985,7.88814708,3359.2,3359.1,0.29819]
[1735388386977,3.2078,3359.2,3359.1,0.29819]
[1735388388283,3.2078,3359.2,3358.7,0.4261]
[1735388388492,0.29821,3359.0,3358.8,0.29821]
[1735388388790,0.8935,3358.9,3358.5,3.6396]
[1735388389086,0.29822,3358.8,3358.6,0.29823]
[1735388389289,1.63921,3358.9,3358.6,0.29824]
[1735388389488,1.63921,3358.9,3358.7,0.29822]
[1735388390485,0.29822,3358.8,3358.6,0.29823]
[1735388391082,3.2078,3358.8,3358.2,0.4353]
[1735388391286,0.29825,3358.5,3358.3,0.29826]
[1735388391787,0.4475,3358.4,3358.3,0.29826]
[1735388394290,0.74576,3358.4,3358.2,0.29827]
[1735388394491,0.8749,3358.3,3358.2,0.29827]
[1735388397094,1.17316,3358.3,3358.2,0.29827]
[1735388397392,1.17316,3358.3,3358.1,0.29828]
[1735388398289,0.8749,3358.3,3358.0,3.2078]
[1735388398486,1.17316,3358.3,3358.0,3.2078]
[1735388398792,0.2983,3358.0,3357.8,0.29831]
[1735388399194,0.4231,3357.9,3357.8,0.29831]
[1735388402288,4.68034708,3358.1,3358.0,0.29829]
[1735388402493,4.68034708,3358.1,3358.0,3.50609]
[1735388403289,0.4403,3358.2,3358.0,3.2078]
[1735388403490,4.68034708,3358.7,3358.0,3.2078]
[1735388403689,0.8802,3358.6,3358.5,0.29825]
[1735388403889,4.68034708,3358.7,3358.6,0.29824]
[1735388404197,4.68034708,3358.7,3358.6,41.09824]
[1735388404697,0.4399,3358.9,3358.8,0.29822]
[1735388405194,0.4399,3358.9,3358.5,0.4412]
[1735388405389,0.4399,3358.9,3358.8,0.29822]
[1735388406390,8.75364708,3359.2,3358.4,3.2078]
[1735388406701,9.21914708,3359.2,3359.1,0.29819]
[1735388406999,4.83698,3359.2,3359.1,0.29819]
[1735388409195,3.2078,3359.2,3359.1,0.29819]
[1735388411695,3.2078,3359.2,3359.1,41.09819]
[1735388411897,1.3683,3359.5,3358.8,3.6557]
[1735388412099,4.97851708,3359.4,3359.2,0.29818]
[1735388413191,6.15429765,3359.4,3359.2,0.29818]
[1735388413391,6.15429765,3359.4,3359.3,0.29817]
[1735388414196,0.29817,3359.4,3359.3,0.29817]
[1735388414894,0.29817,3359.3,3359.2,0.29818]
[1735388415291,0.29817,3359.3,3358.9,40.8]
[1735388415292,1.57775233,3359.3,3358.8,3.2078]
[1735388415495,0.29821,3358.9,3358.8,3.2078]
[1735388415698,0.29823,3358.7,3358.6,0.29823]
[1735388416000,0.29824,3358.6,3358.4,0.29825]
[1735388416501,0.29824,3358.6,3358.5,0.29825]
[1735388418202,0.29825,3358.5,3358.4,0.29825]
[1735388418498,0.29824,3358.6,3358.4,0.29825]
[1735388419197,0.29824,3358.6,3358.1,44.0078]
[1735388419497,0.29825,3358.5,3358.4,0.29825]
[1735388420508,6.25853111,3358.7,3358.1,44.0078]
[1735388420712,0.29827,3358.2,3358.1,3.2078]
[1735388421916,0.29827,3358.2,3358.1,3.50608]
[1735388422103,0.29827,3358.2,3358.1,3.2078]
[1735388422306,1.20727,3358.2,3358.1,3.2078]
[1735388426406,1.20727,3358.2,3358.0,0.29829]
[1735388426407,0.29828,3358.1,3358.0,0.29829]
[1735388427708,0.29828,3358.1,3358.0,41.09829]
[1735388428306,0.29828,3358.1,3358.0,0.29829]
[1735388428908,5.58977878,3358.2,3357.8,40.8]
[1735388429208,0.29829,3358.0,3357.9,0.29829]
[1735388432012,0.29829,3358.1,3358.0,0.29828]
[1735388433012,0.75797,3358.3,3358.2,0.29827]
[1735388433315,7.88857878,3358.4,3358.3,0.29826]
[1735388433911,3.2078,3358.4,3358.3,0.29826]
[1735388435012,3.50605,3358.4,3358.3,0.29826]
[1735388435313,3.95625,3358.4,3358.3,0.29826]
[1735388436818,3.658,3358.4,3358.1,0.4464]
[1735388437025,3.658,3358.4,3357.9,0.29829]
[1735388437319,0.9224,3358.3,3357.9,0.29829]
[1735388437713,0.9224,3358.3,3357.6,4.78555233]
[1735388437714,0.29828,3358.1,3358.0,0.29829]
[1735388437913,0.29828,3358.2,3358.0,0.29829]
[1735388438517,0.29828,3358.1,3358.0,0.29829]
[1735388439120,0.29828,3358.1,3357.6,5.23045233]
[1735388439314,0.29828,3358.1,3357.9,0.29829]
[1735388439512,0.9224,3358.3,3357.6,3.2078]
[1735388439720,0.29831,3357.8,3357.7,0.29831]
[1735388440020,0.9224,3358.3,3357.7,0.29831]
[1735388440219,0.2983,3357.9,3357.7,0.29831]
[1735388443127,4.68077878,3358.2,3357.6,3.2078]
[1735388443327,0.29828,3358.1,3358.0,0.29829]
[1735388443728,0.29828,3358.1,3358.0,41.09829]
[1735388443927,5.12517878,3358.2,3358.0,40.8]
[1735388444126,0.29828,3358.1,3358.0,41.09828]
[1735388444423,0.9224,3358.3,3358.0,40.8]
[1735388444624,0.29827,3358.3,3358.2,0.29827]
[1735388446630,0.29827,3358.2,3358.1,0.29827]
[1735388448125,0.29827,3358.3,3358.1,0.29827]
[1735388448429,0.29827,3358.2,3358.1,0.29827]
[1735388448630,3.2078,3358.4,3357.7,0.4647]
[1735388448929,0.29827,3358.3,3358.2,0.29827]
[1735388449130,4.97904878,3358.3,3358.2,0.29827]
[1735388450329,0.29827,3358.3,3358.2,0.29827]
[1735388451530,4.97904878,3358.3,3358.2,0.29827]
[1735388452034,4.68077878,3358.3,3358.2,0.29827]
[1735388452237,4.97903878,3358.3,3358.2,0.29827]
[1735388452834,4.68077878,3358.3,3358.2,0.29827]
[1735388454535,7.88857878,3358.4,3357.7,1.21048]
[1735388454731,7.88857878,3358.4,3358.2,0.29827]
[1735388454732,0.29826,3358.3,3358.2,0.29827]
[1735388455237,8.18683878,3358.4,3358.3,0.29826]
[1735388456337,0.29827,3358.3,3358.2,0.29826]
[1735388458137,4.97904878,3358.3,3358.2,0.29826]
[1735388459239,0.29827,3358.3,3358.2,0.29826]
[1735388459832,9.36218765,3358.4,3358.3,0.29826]
[1735388460035,9.06392765,3358.4,3358.3,0.29826]
[1735388460443,3.2078,3358.4,3358.3,0.29826]
[1735388461036,5.85612765,3358.5,3358.2,3.2078]
[1735388461239,5.85612765,3358.5,3358.4,0.29825]
[1735388461837,11.4164646,3359.0,3358.3,0.9051]
[1735388461838,4.6895846,3358.6,3358.3,0.9051]
[1735388462032,4.6895846,3358.6,3358.5,0.29824]
[1735388463138,3.6394,3359.0,3358.3,2.0851]
[1735388463139,4.6895846,3358.7,3358.3,2.0851]
[1735388463344,4.6895846,3358.7,3358.6,0.29824]
[1735388464346,7.8973846,3359.0,3358.6,0.4242]
[1735388464548,7.8973846,3359.0,3358.9,0.29821]
[1735388465745,3.2078,3359.0,3358.9,0.29821]
[1735388466044,3.2078,3359.0,3358.9,41.09821]
[1735388467049,3.2078,3359.0,3358.9,0.29821]
[1735388468843,4.6895846,3359.3,3359.2,0.29818]
[1735388469043,7.8973846,3359.3,3359.2,0.29818]
[1735388469445,3.2078,3359.3,3359.2,0.29818]
[1735388473146,5.85612765,3359.4,3359.3,0.29817]
[1735388474343,7.03738765,3359.5,3359.3,0.29817]
[1735388474547,0.2982,3359.1,3359.0,0.2982]
[1735388475433,3.2078,3359.3,3358.5,3.2078]
[1735388475635,0.29821,3358.9,3358.8,0.29821]
[1735388476047,0.76381,3358.9,3358.8,0.29821]
[1735388476240,0.4656,3358.9,3358.8,0.29821]
[1735388476646,4.97701984,3359.1,3359.0,0.2982]
[1735388476647,4.67881984,3359.1,3359.0,0.2982]
[1735388477043,6.75252765,3359.2,3358.7,0.4499]
[1735388477349,6.75252765,3359.2,3358.5,3.2078]
[1735388478053,0.29823,3358.6,3358.5,3.2078]
[1735388479745,0.73953,3358.6,3358.5,3.2078]
[1735388482650,0.73953,3358.6,3358.5,0.29824]
[1735388483755,4.97734098,3358.8,3358.7,0.29823]
[1735388483945,4.67912098,3358.8,3358.7,0.29823]
[1735388484145,4.97734098,3358.8,3358.7,0.29823]
[1735388484444,4.67912098,3358.8,3358.7,0.29823]
[1735388485252,4.97734098,3358.8,3358.7,0.29823]
[1735388485851,0.29822,3358.8,3358.7,0.29823]
[1735388486849,4.97734098,3358.8,3358.7,0.29823]
[1735388487149,4.67912098,3358.8,3358.7,0.29823]
[1735388487553,4.67912098,3358.8,3358.3,1.18796]
[1735388487554,6.30383098,3358.9,3358.8,0.29822]
[1735388487858,6.00562098,3358.9,3358.8,0.29822]
[1735388488153,6.30383098,3358.9,3358.8,0.29822]
[1735388489055,1.62471,3358.9,3358.8,0.29822]
[1735388489451,1.3265,3358.9,3358.8,0.29822]
[1735388489950,1.62471,3358.9,3358.8,0.29822]
[1735388490149,1.3265,3358.9,3358.8,0.29822]
[1735388492053,7.88692098,3359.0,3358.6,0.4323]
[1735388492257,4.67912098,3359.0,3358.9,0.29821]
[1735388492559,4.67912098,3359.1,3359.0,0.2982]
[1735388493258,4.67912098,3359.1,3359.0,0.7297]
[1735388493852,0.9049,3359.4,3359.0,0.4315]
[1735388494054,0.9049,3359.4,3359.3,0.29817]
[1735388496772,0.9049,3359.4,3359.0,0.4315]
[1735388497063,0.29818,3359.2,3359.1,0.29819]
[1735388497459,0.29821,3358.9,3358.8,3.50601]
[1735388498660,7.88692098,3359.2,3358.8,3.2078]
[1735388498857,4.67912098,3359.2,3359.1,0.29819]
[1735388499464,6.15430765,3359.3,3359.2,0.29818]
[1735388500361,0.29818,3359.3,3359.2,0.29818]
[1735388501054,5.587156,3359.4,3358.8,3.2078]
[1735388501258,5.885316,3359.4,3359.3,0.29817]
[1735388502664,7.05918765,3359.4,3359.3,0.29817]
[1735388504966,6.76102765,3359.4,3359.0,0.4426]
[1735388505261,0.29818,3359.3,3359.2,0.29818]
[1735388506469,1.20307,3359.4,3359.3,0.29817]
[1735388507864,0.9049,3359.4,3359.3,0.29817]
[1735388508867,1.20306,3359.4,3359.3,0.29817]
[1735388509964,5.88952801,3359.4,3359.3,0.29817]
[1735388510175,4.68646801,3359.4,3359.3,0.29817]
[1735388511166,4.68646801,3359.6,3359.0,0.4426]
[1735388511477,4.68646801,3359.6,3359.5,0.29815]
[1735388511672,4.98461801,3359.6,3359.5,0.29815]
[1735388512479,0.29815,3359.6,3359.5,0.29815]
[1735388512970,0.29818,3359.3,3359.2,0.29817]
[1735388513167,0.29818,3359.2,3359.0,0.2982]
[1735388513374,0.4605,3359.1,3359.0,0.2982]
[1735388515774,0.75869,3359.1,3359.0,0.2982]
[1735388516661,6.61677501,3359.1,3359.0,0.2982]
[1735388518473,6.31858501,3359.1,3359.0,0.2982]
[1735388518774,6.61677501,3359.1,3359.0,0.2982]
[1735388519674,0.2982,3359.0,3358.9,0.2982]
[1735388520572,6.61677501,3359.1,3359.0,0.2982]
[1735388521265,0.2982,3359.0,3358.9,0.2982]
[1735388522272,6.61677501,3359.1,3359.0,0.2982]
[1735388523864,6.31858501,3359.1,3359.0,0.2982]
[1735388524073,5.85808501,3359.1,3359.0,0.2982]
[1735388524370,4.68563584,3359.1,3359.0,0.2982]
[1735388524676,4.68563584,3359.1,3359.0,41.0982]
[1735388525273,4.68563584,3359.3,3359.2,0.29818]
[1735388528566,4.68563584,3359.3,3359.2,0.75568]
[1735388529473,4.68563584,3359.5,3359.4,0.29816]
[1735388529881,4.98378584,3359.5,3359.4,0.29816]
[1735388530870,0.29815,3359.5,3359.4,0.29816]
[1735388531073,6.62193501,3359.6,3359.5,0.29815]
[1735388531976,6.32378501,3359.6,3359.5,0.29815]
[1735388533079,0.4657,3359.6,3359.5,0.29815]
[1735388533876,7.03402501,3359.7,3359.6,0.29814]
[1735388533877,5.85808501,3359.7,3359.6,0.29814]
[1735388534182,5.85808501,3359.7,3359.6,0.72724]
[1735388534382,5.85808501,3359.7,3359.6,1.18464]
[1735388535882,4.68882411,3359.8,3359.7,0.29814]
[1735388536078,4.68882411,3359.8,3359.7,0.72304]
[1735388536984,4.68882411,3359.9,3359.8,0.29813]
[1735388538181,4.68882411,3360.0,3359.9,0.29812]
[1735388539580,0.7653,3360.1,3359.7,0.4249]
[1735388539581,6.62338501,3360.1,3359.7,0.4249]
[1735388540084,6.62338501,3360.1,3360.0,0.29811]
[1735388540278,6.32528501,3360.1,3360.0,0.29811]
[1735388540686,0.4672,3360.1,3360.0,0.29811]
[1735388541781,5.15057574,3360.1,3360.0,0.29811]
[1735388542277,5.15057574,3360.1,3360.0,3.50591]
[1735388543182,0.4672,3360.1,3360.0,3.50591]
[1735388543884,0.7653,3360.1,3360.0,3.50591]
[1735388545184,5.44867574,3360.1,3360.0,3.50591]
[1735388546289,0.7653,3360.1,3360.0,3.50591]
[1735388548694,0.4672,3360.1,3360.0,3.50591]
[1735388549493,0.4672,3360.1,3360.0,3.2078]
[1735388549793,0.7653,3360.1,3360.0,3.2078]
[1735388550997,0.29814,3359.7,3359.6,0.29813]
[1735388551999,0.29813,3359.8,3359.7,0.29813]
[1735388552293,0.4672,3360.1,3359.5,3.2078]
[1735388552603,0.29814,3359.6,3359.5,3.2078]
[1735388553396,0.29818,3359.2,3359.1,0.29818]
[1735388553695,3.2078,3359.6,3358.8,7.86238427]
[1735388553996,1.20699,3359.1,3359.0,0.29819]
[1735388555394,0.2982,3359.0,3358.9,0.2982]
[1735388555600,0.7504,3359.0,3358.9,0.2982]
[1735388555998,0.2982,3358.9,3358.8,3.2078]
[1735388557095,0.2982,3358.9,3358.8,3.50601]
[1735388558308,0.4522,3359.0,3358.8,3.2078]
[1735388558601,0.9088,3359.1,3358.8,3.2078]
[1735388558808,0.9088,3359.1,3359.0,0.29819]
[1735388559103,4.68337574,3359.2,3358.9,2.03235233]
[1735388559304,4.68337574,3359.2,3359.1,0.29819]
[1735388560006,6.31698501,3359.4,3359.0,0.426]
[1735388560007,0.4589,3359.4,3359.0,0.426]
[1735388560211,0.29817,3359.3,3359.2,0.29817]
[1735388560707,0.29817,3359.3,3359.2,0.29818]
[1735388562003,5.14227574,3359.4,3359.0,0.426]
[1735388562204,0.29818,3359.2,3359.1,0.29818]
[1735388563204,5.14227574,3359.4,3359.0,0.426]
[1735388563405,0.29818,3359.3,3359.2,0.29817]
[1735388564407,0.2982,3358.9,3358.8,3.2078]
[1735388564902,4.68337574,3359.3,3358.8,3.2078]
[1735388565101,0.29818,3359.2,3359.1,0.29818]
[1735388566605,5.44044574,3359.4,3359.3,0.29817]
[1735388568503,0.75707,3359.4,3359.3,0.29817]
[1735388568708,0.4589,3359.4,3358.9,2.47695233]
[1735388569113,0.29818,3359.2,3359.1,0.29818]
[1735388572106,0.29817,3359.3,3359.2,0.29817]
[1735388572306,5.44043574,3359.4,3359.3,0.29817]
[1735388572709,4.68337574,3359.4,3359.3,0.29817]
[1735388573509,8.18931574,3359.7,3359.2,0.4621]
[1735388573715,8.18931574,3359.7,3359.6,0.29814]